[Event "Niedersachsen-ch 2020"]
[Site "Verden-Aller"]
[Date "2020.01.02"]
[Round "2.5"]
[White "Pubantz, Jan"]
[Black "Bargsten, Justus"]
[Result "1-0"]
[ECO "E06"]
[WhiteElo "2233"]
[BlackElo "2002"]
[Annotator "ChessBase"]
[PlyCount "51"]
[EventDate "2020.01.02"]
[EventType "swiss"]
[EventCountry "GER"]
[SourceTitle "playchess.com"]
[Source "ChessBase"]
[SourceQuality "1"]
[TimeControl "40/5400+30:1800+30"]

1. d4 {[%emt 0:01:21]} Nf6 {[%emt 0:00:00]} 2. c4 {[%emt 0:00:04]} e6 {[%emt 0:00:00]} 3. g3 {[%emt 0:00:06]} d5 {[%emt 0:01:06]} 4. Bg2 {[%emt 0:00:08]} Be7 {[%emt 0:00:07]} 5. Nf3 {[%emt 0:00:07]} O-O {[%emt 0:00:45]} 6. Nc3 {[%emt 0:00:06]} b6 {[%emt 0:04:49]} 7. O-O {[%emt 0:01:11]} Bb7 {[%emt 0:00:54]} 8. cxd5 {[%emt 0:00:09]} exd5 {[%emt 0:00:07]} 9. Bf4 {[%emt 0:00:32]} c6 {[%emt 0:00:54]} 10. Qc2 {[%emt 0:04:29]} Na6 {[%emt 0:04:27]} 11. a3 {[%emt 0:22:34]} Nc7 {[%emt 0:02:39]} 12. Rfd1 {[%emt 0:00:34]} Ne6 {[%emt 0:01:44]} 13. Be5 {[%emt 0:07:14]} Rc8 {[%emt 0:05:11]} 14. Bh3 {[%emt 0:08:39]} Nd7 {[%emt 0:07:38]} 15. e4 {[%emt 0:02:19]} Nxe5 {[%emt 0:01:35]} 16. dxe5 {[%emt 0:01:19]} Qc7 {[%emt 0:02:40]} 17. exd5 {[%emt 0:03:11]} cxd5 {[%emt 0:00:11]} 18. Qb3 {[%emt 0:06:05]} d4 {[%emt 0:07:44]} 19. Nb5 {[%emt 0:07:44]} Bxf3 {[%emt 0:03:48]} 20. Nxc7 {[%emt 0:02:11]} Bxd1 {[%emt 0:00:13]} 21. Rxd1 {[%emt 0:00:10]} Nc5 {[%emt 0:00:05]} 22. Nd5 {[%emt 0:03:49]} Nxb3 {[%emt 0:00:57]} 23. Nxe7+ {[%emt 0:00:02]} Kh8 {[%emt 0:00:09]} 24. Nxc8 {[%emt 0:00:09]} Rd8 {[%emt 0:01:14]} 25. Nd6 {[%emt 0:00:19]} Kg8 {[%emt 0:00:05]} 26. Bg2 {[%emt 0:00:31]} 1-0

[Event "Niedersachsen-ch 2020"]
[Site "Verden-Aller"]
[Date "2020.01.02"]
[Round "2.6"]
[White "Riemay, David"]
[Black "Tonndorf, Matthias"]
[Result "1-0"]
[ECO "A46"]
[WhiteElo "2139"]
[BlackElo "2188"]
[Annotator "ChessBase"]
[PlyCount "81"]
[EventDate "2020.01.02"]
[EventType "swiss"]
[EventCountry "GER"]
[SourceTitle "playchess.com"]
[Source "ChessBase"]
[SourceQuality "1"]
[TimeControl "40/5400+30:1800+30"]

1. d4 {[%emt 0:00:00]} Nf6 {[%emt 0:00:00]} 2. Nf3 {[%emt 0:00:00]} e6 {[%emt 0:00:00]} 3. e3 {[%emt 0:00:00]} b6 {[%emt 0:02:04]} 4. Bd3 {[%emt 0:00:05]} Bb7 {[%emt 0:03:38]} 5. O-O {[%emt 0:00:18]} Be7 {[%emt 0:01:36]} 6. Nbd2 {[%emt 0:00:30]} c5 {[%emt 0:02:28]} 7. b3 {[%emt 0:00:57]} O-O {[%emt 0:01:22]} 8. Bb2 {[%emt 0:00:19]} cxd4 {[%emt 0:01:54]} 9. exd4 {[%emt 0:02:34]} d6 {[%emt 0:02:20]} 10. Re1 {[%emt 0:01:15]} Nbd7 {[%emt 0:00:16]} 11. c4 {[%emt 0:02:29]} Re8 {[%emt 0:03:22]} 12. a3 {[%emt 0:06:58]} Bf8 {[%emt 0:04:10]} 13. b4 {[%emt 0:01:40]} g6 {[%emt 0:01:27]} 14. Rc1 {[%emt 0:09:18]} Rc8 {[%emt 0:09:26]} 15. Qb3 {[%emt 0:03:21]} Rc7 {[%emt 0:01:47]} 16. h4 {[%emt 0:13:17]} Qa8 {[%emt 0:00:55]} 17. Ng5 {[%emt 0:04:08]} Qd8 {[%emt 0:15:33]} 18. Rcd1 {[%emt 0:10:22]} h6 {[%emt 0:01:08]} 19. Nh3 {[%emt 0:05:33]} Bg7 {[%emt 0:03:52]} 20. Nf4 {[%emt 0:02:06]} Nf8 {[%emt 0:06:36]} 21. Bb1 {[%emt 0:10:24]} Qa8 {[%emt 0:02:42]} 22. Qg3 {[%emt 0:01:16]} Rce7 {[%emt 0:00:50]} 23. Nd3 {[%emt 0:03:29]} e5 {[%emt 0:05:54]} 24. c5 {[%emt 0:03:03]} dxc5 {[%emt 0:03:59]} 25. dxe5 {[%emt 0:01:45]} N6d7 {[%emt 0:06:15]} 26. Nc4 {[%emt 0:03:43]} Rd8 {[%emt 0:04:57]} 27. h5 {[%emt 0:00:38]} Bd5 {[%emt 0:01:01]} 28. Ne3 {[%emt 0:02:08]} Bb3 {[%emt 0:02:46]} 29. hxg6 {[%emt 0:02:06]} fxg6 {[%emt 0:00:16]} 30. Rc1 {[%emt 0:01:28]} cxb4 {[%emt 0:03:49]} 31. axb4 {[%emt 0:00:20]} Rc8 {[%emt 0:00:21]} 32. f4 {[%emt 0:00:36]} Be6 {[%emt 0:02:06]} 33. Nf2 {[%emt 0:01:51]} Rxc1 {[%emt 0:02:09]} 34. Rxc1 {[%emt 0:00:07]} a5 {[%emt 0:00:14]} 35. Nfg4 {[%emt 0:02:08]} Bxg4 {[%emt 0:01:42]} 36. Nxg4 {[%emt 0:01:27]} axb4 {[%emt 0:02:42]} 37. f5 {[%emt 0:00:46]} Qb8 {[%emt 0:00:56]} 38. Qb3+ {[%emt 0:00:28]} Kh7 {[%emt 0:01:16]} 39. f6 {[%emt 0:00:33]} Re6 {[%emt 0:01:03]} 40. fxg7 {[%emt 0:00:21]} Kxg7 {[%emt 0:00:06]} 41. Qe3 {[%emt 0:32:34]} 1-0

[Event "Niedersachsen-ch 2020"]
[Site "Verden-Aller"]
[Date "2020.01.02"]
[Round "2.7"]
[White "Hampel, Felix"]
[Black "Stotyn, Fabian"]
[Result "1/2-1/2"]
[ECO "E18"]
[WhiteElo "2290"]
[BlackElo "2198"]
[Annotator "NA"]
[PlyCount "95"]
[EventDate "2020.01.02"]
[EventType "swiss"]
[EventCountry "GER"]
[SourceTitle "playchess.com"]
[Source "ChessBase"]
[SourceQuality "1"]
[TimeControl "40/5400+30:1800+30"]

1. c4 {[%emt 0:00:19]} Nf6 {[%emt 0:00:00]} 2. Nf3 {[%emt 0:00:09]} e6 {[%emt 0:00:00]} 3. d4 {[%emt 0:00:18]} b6 {[%emt 0:00:21]} 4. g3 {[%emt 0:00:06]} Bb7 {[%emt 0:00:03]} 5. Bg2 {[%emt 0:00:06]} Be7 {[%emt 0:00:14]} 6. O-O {[%emt 0:00:06]} O-O {[%emt 0:00:04]} 7. Nc3 {[%emt 0:00:11]} d5 {[%emt 0:04:37]} 8. Ne5 {[%emt 0:02:18]} Nbd7 {[%emt 0:01:33]} 9. Qa4 {[%emt 0:01:49]} c6 {[%emt 0:07:43]} 10. Rd1 {[%emt 0:05:27]} Nxe5 {[%emt 0:03:15]} 11. dxe5 {[%emt 0:01:15]} Nd7 {[%emt 0:00:31]} 12. e4 {[%emt 0:00:53]} dxc4 {[%emt 0:02:40]} 13. Qxc4 {[%emt 0:01:41]} Qc8 {[%emt 0:03:01]} 14. f4 {[%emt 0:01:37]} Ba6 {[%emt 0:08:38]} 15. Qb3 {[%emt 0:02:53]} Rd8 {[%emt 0:04:15]} 16. Be3 $11 {[%emt 0:02:25]} Nc5 {[%emt 0:02:49]} 17. Qc2 {[%emt 0:00:22]} Qc7 {[%emt 0:03:22]} 18. b4 {[%emt 0:10:12]} Bd3 {[%emt 0:05:10]} 19. Qf2 {[%emt 0:03:47]} Nb7 {[%emt 0:00:43]} 20. a3 {[%emt 0:02:16]} c5 {[%emt 0:00:38]} 21. Rac1 {[%emt 0:01:08]} Bc4 {[%emt 0:03:59]} 22. Nd5 {[%emt 0:13:27]} exd5 {[%emt 0:01:40]} 23. exd5 {[%emt 0:00:14]} cxb4 {[%emt 0:12:49]} 24. d6 {[%emt 0:03:01]} Nxd6 {[%emt 0:00:45]} 25. exd6 {[%emt 0:00:42]} Bxd6 {[%emt 0:00:34]} 26. Bxa8 {[%emt 0:01:20]} Rxa8 {[%emt 0:00:14]} 27. Qd2 {[%emt 0:08:05]} Bf8 {[%emt 0:02:37]} 28. axb4 {[%emt 0:01:08]} b5 {[%emt 0:00:47]} 29. Ra1 {[%emt 0:01:55]} h5 {[%emt 0:00:52]} 30. Qd7 {[%emt 0:18:12]} Qxd7 {[%emt 0:00:24]} 31. Rxd7 {[%emt 0:00:06]} Bxb4 {[%emt 0:00:35]} 32. Rdxa7 {[%emt 0:00:22]} Rxa7 {[%emt 0:00:30]} 33. Rxa7 {[%emt 0:00:08]} Bc3 {[%emt 0:00:42]} 34. Rc7 {[%emt 0:00:45]} Bf6 {[%emt 0:00:49]} 35. Kf2 {[%emt 0:01:35]} Kh7 {[%emt 0:00:19]} 36. Rc5 {[%emt 0:01:36]} g6 {[%emt 0:01:37]} 37. f5 {[%emt 0:02:00]} gxf5 {[%emt 0:04:50]} 38. Rxf5 {[%emt 0:00:57]} Kg6 {[%emt 0:00:11]} 39. Rc5 {[%emt 0:00:12]} Be7 {[%emt 0:03:55]} 40. Rc6+ {[%emt 0:05:30]} Be6 {[%emt 0:00:26]} 41. Bc5 {[%emt 0:31:32]} Bxc5+ {[%emt 0:30:23]} 42. Rxc5 {[%emt 0:00:06]} b4 {[%emt 0:00:02]} 43. Ke3 {[%emt 0:00:51]} b3 {[%emt 0:00:23]} 44. Rb5 {[%emt 0:00:18]} h4 {[%emt 0:10:17]} 45. g4 {[%emt 0:00:00]} Bxg4 {[%emt 0:00:00]} 46. Rxb3 {[%emt 0:00:00]} Be6 {[%emt 0:00:00]} 47. Rb8 {[%emt 0:00:00]} h3 {[%emt 0:00:00]} 48. Ke4 1/2-1/2

[Event "Niedersachsen-ch 2020"]
[Site "Verden-Aller"]
[Date "2020.01.02"]
[Round "2.8"]
[White "Schmidt, Dennis"]
[Black "Ewert, Hannes"]
[Result "1/2-1/2"]
[ECO "C28"]
[WhiteElo "2043"]
[BlackElo "2256"]
[Annotator "NA"]
[PlyCount "73"]
[EventDate "2020.01.02"]
[EventType "swiss"]
[EventCountry "GER"]
[SourceTitle "playchess.com"]
[Source "ChessBase"]
[SourceQuality "1"]
[TimeControl "40/5400+30:1800+30"]

1. e4 {[%emt 0:00:00]} e5 {[%emt 0:00:00]} 2. Nc3 {[%emt 0:00:00]} Nc6 {[%emt 0:00:00]} 3. Bc4 {[%emt 0:00:06]} Nf6 {[%emt 0:00:27]} 4. d3 {[%emt 0:00:42]} Bb4 {[%emt 0:00:34]} 5. Nge2 {[%emt 0:03:34]} d5 {[%emt 0:01:59]} 6. exd5 {[%emt 0:00:28]} Nxd5 {[%emt 0:00:02]} 7. O-O {[%emt 0:01:22]} Nxc3 {[%emt 0:02:10]} 8. Nxc3 {[%emt 0:02:22]} O-O {[%emt 0:00:32]} 9. Ne4 {[%emt 0:12:58]} Bf5 {[%emt 0:08:38]} 10. a3 {[%emt 0:04:22]} Be7 {[%emt 0:01:59]} 11. Be3 {[%emt 0:06:06]} Qd7 {[%emt 0:03:53]} 12. Nc5 $11 {[%emt 0:20:05]} Bxc5 {[%emt 0:00:18]} 13. Bxc5 {[%emt 0:00:04]} Rfe8 {[%emt 0:00:34]} 14. Re1 {[%emt 0:01:26]} a6 {[%emt 0:03:32]} 15. Qf3 {[%emt 0:05:56]} Be6 {[%emt 0:00:14]} 16. Rad1 {[%emt 0:01:28]} Rad8 {[%emt 0:05:18]} 17. h3 {[%emt 0:07:13]} b5 {[%emt 0:17:01]} 18. Bxe6 {[%emt 0:00:40]} Rxe6 {[%emt 0:00:04]} 19. Rd2 {[%emt 0:12:55]} Rf6 {[%emt 0:02:46]} 20. Qg4 {[%emt 0:01:17]} Qd5 {[%emt 0:01:19]} 21. b4 {[%emt 0:08:05]} a5 {[%emt 0:04:41]} 22. Qe4 {[%emt 0:00:49]} Re6 {[%emt 0:02:13]} 23. Qxd5 {[%emt 0:02:12]} Rxd5 {[%emt 0:00:02]} 24. f3 {[%emt 0:01:37]} f6 {[%emt 0:01:27]} 25. Rde2 {[%emt 0:00:59]} axb4 {[%emt 0:02:41]} 26. axb4 {[%emt 0:00:12]} Kf7 {[%emt 0:00:19]} 27. Kf2 {[%emt 0:01:48]} Nb8 {[%emt 0:10:23]} 28. f4 {[%emt 0:03:14]} Nd7 {[%emt 0:02:35]} 29. d4 {[%emt 0:00:43]} Nxc5 {[%emt 0:05:50]} 30. dxc5 {[%emt 0:00:02]} Rd4 {[%emt 0:01:49]} 31. Re4 {[%emt 0:00:09]} f5 {[%emt 0:13:07]} 32. Rxd4 {[%emt 0:01:03]} exd4 {[%emt 0:00:08]} 33. Ra1 {[%emt 0:00:13]} c6 {[%emt 0:02:51]} 34. Ra7+ {[%emt 0:00:16]} Re7 {[%emt 0:00:57]} 35. Ra6 {[%emt 0:00:08]} Re6 {[%emt 0:02:14]} 36. Ra7+ {[%emt 0:00:11]} Re7 {[%emt 0:01:01]} 37. Ra6 {[%emt 0:00:29]} 1/2-1/2

[Event "Niedersachsen-ch 2020"]
[Site "Verden-Aller"]
[Date "2020.01.02"]
[Round "2.9"]
[White "Balazs, Balint"]
[Black "Brunner, Wilken"]
[Result "1-0"]
[ECO "A45"]
[WhiteElo "2158"]
[BlackElo "1978"]
[Annotator "NA"]
[PlyCount "87"]
[EventDate "2020.01.02"]
[EventType "swiss"]
[EventCountry "GER"]
[SourceTitle "playchess.com"]
[Source "ChessBase"]
[SourceQuality "1"]
[TimeControl "40/5400+30:1800+30"]

1. d4 {[%emt 0:00:00]} Nf6 {[%emt 0:00:00]} 2. Nc3 {[%emt 0:00:00]} c5 {[%emt 0:00:56]} 3. d5 {[%emt 0:00:00]} e5 {[%emt 0:00:04]} 4. e4 {[%emt 0:04:51]} d6 {[%emt 0:03:10]} 5. Bd3 {[%emt 0:00:26]} g6 {[%emt 0:00:28]} 6. h3 {[%emt 0:06:48]} Bg7 {[%emt 0:00:39]} 7. Nf3 {[%emt 0:00:52]} O-O {[%emt 0:00:27]} 8. O-O {[%emt 0:00:05]} Nbd7 {[%emt 0:04:07]} 9. Nd2 {[%emt 0:06:49]} a6 {[%emt 0:00:41]} 10. a4 {[%emt 0:00:06]} b6 {[%emt 0:01:08]} 11. Nc4 {[%emt 0:03:00]} Ne8 {[%emt 0:00:11]} 12. f4 {[%emt 0:06:22]} f5 {[%emt 0:15:04]} 13. exf5 {[%emt 0:19:25]} gxf5 {[%emt 0:01:15]} 14. Ne3 {[%emt 0:01:03]} e4 {[%emt 0:08:02]} 15. Bc4 {[%emt 0:00:08]} Qh4 {[%emt 0:01:00]} 16. Bd2 {[%emt 0:08:16]} Bd4 {[%emt 0:04:50]} 17. Qe1 {[%emt 0:02:41]} Qh6 {[%emt 0:01:59]} 18. Ncd1 {[%emt 0:06:41]} Ng7 {[%emt 0:09:27]} 19. c3 {[%emt 0:00:26]} Bxe3+ {[%emt 0:01:17]} 20. Nxe3 {[%emt 0:00:16]} Nf6 {[%emt 0:01:03]} 21. b4 {[%emt 0:03:42]} Kh8 {[%emt 0:03:39]} 22. bxc5 {[%emt 0:00:37]} bxc5 {[%emt 0:00:08]} 23. Rb1 {[%emt 0:00:43]} Nfh5 {[%emt 0:01:19]} 24. Qh4 {[%emt 0:01:09]} Qg6 {[%emt 0:04:45]} 25. Rb6 {[%emt 0:04:19]} Ra7 {[%emt 0:08:50]} 26. Rfb1 {[%emt 0:02:58]} Rg8 {[%emt 0:06:38]} 27. Be2 {[%emt 0:07:19]} Ng3 {[%emt 0:07:43]} 28. Bd1 {[%emt 0:00:23]} h6 {[%emt 0:01:11]} 29. Be1 {[%emt 0:02:03]} N7h5 {[%emt 0:00:48]} 30. R1b2 {[%emt 0:00:38]} Rag7 {[%emt 0:02:03]} 31. c4 {[%emt 0:01:07]} Kh7 {[%emt 0:00:13]} 32. Bc3 {[%emt 0:00:16]} Rd7 {[%emt 0:02:25]} 33. a5 {[%emt 0:00:25]} Rf7 {[%emt 0:05:07]} 34. Be5 {[%emt 0:03:23]} dxe5 {[%emt 0:02:00]} 35. Rxg6 {[%emt 0:00:09]} Rxg6 {[%emt 0:00:03]} 36. Bxh5 {[%emt 0:00:15]} Nxh5 {[%emt 0:00:06]} 37. Qxh5 {[%emt 0:00:08]} exf4 {[%emt 0:00:05]} 38. Nd1 {[%emt 0:01:07]} Rfg7 {[%emt 0:00:15]} 39. Qh4 {[%emt 0:01:21]} f3 {[%emt 0:00:13]} 40. Ne3 {[%emt 0:00:12]} f4 {[%emt 0:03:44]} 41. Qxf4 {[%emt 0:30:19]} Bxh3 {[%emt 0:30:10]} 42. Qxe4 {[%emt 0:00:14]} Bxg2 {[%emt 0:00:42]} 43. Nxg2 {[%emt 0:00:19]} fxg2 {[%emt 0:00:18]} 44. Rxg2 {[%emt 0:00:46]} 1-0

[Event "Niedersachsen-ch 2020"]
[Site "Verden-Aller"]
[Date "2020.01.02"]
[Round "2.10"]
[White "Scheffner, Jarno"]
[Black "Issing, Peter"]
[Result "0-1"]
[ECO "B43"]
[WhiteElo "1935"]
[BlackElo "2151"]
[Annotator "ChessBase"]
[PlyCount "130"]
[EventDate "2020.01.02"]
[EventType "swiss"]
[EventCountry "GER"]
[SourceTitle "playchess.com"]
[Source "ChessBase"]
[SourceQuality "1"]
[TimeControl "40/5400+30:1800+30"]

1. e4 {[%emt 0:00:00]} c5 {[%emt 0:00:00]} 2. Nf3 {[%emt 0:00:00]} e6 {[%emt 0:00:00]} 3. Nc3 {[%emt 0:00:14]} a6 {[%emt 0:00:35]} 4. d4 {[%emt 0:00:48]} cxd4 {[%emt 0:00:09]} 5. Nxd4 {[%emt 0:00:14]} Qc7 {[%emt 0:04:52]} 6. Be2 {[%emt 0:08:41]} Nf6 {[%emt 0:02:29]} 7. a3 {[%emt 0:01:19]} Nc6 {[%emt 0:02:20]} 8. Be3 {[%emt 0:01:12]} b5 {[%emt 0:04:14]} 9. Nxc6 {[%emt 0:01:25]} dxc6 {[%emt 0:00:43]} 10. O-O {[%emt 0:03:33]} Bb7 {[%emt 0:06:39]} 11. f4 {[%emt 0:09:25]} Be7 {[%emt 0:06:59]} 12. Bf3 {[%emt 0:04:16]} e5 {[%emt 0:08:26]} 13. fxe5 {[%emt 0:03:40]} Qxe5 {[%emt 0:00:30]} 14. Qd4 {[%emt 0:00:09]} Bd6 {[%emt 0:05:24]} 15. Qxe5+ {[%emt 0:04:13]} Bxe5 {[%emt 0:00:12]} 16. Rad1 {[%emt 0:02:10]} O-O {[%emt 0:00:50]} 17. Rd3 {[%emt 0:10:15]} Rfe8 {[%emt 0:09:37]} 18. Nd1 {[%emt 0:08:24]} Re6 {[%emt 0:09:03]} 19. Bc5 {[%emt 0:03:00]} Rae8 {[%emt 0:02:19]} 20. c3 {[%emt 0:02:53]} Bc8 {[%emt 0:07:35]} 21. Nf2 {[%emt 0:00:25]} h5 {[%emt 0:02:10]} 22. Rfd1 {[%emt 0:02:03]} g6 {[%emt 0:02:06]} 23. Rd8 {[%emt 0:07:10]} Bc7 {[%emt 0:01:57]} 24. Rxe8+ {[%emt 0:01:58]} Rxe8 {[%emt 0:00:12]} 25. Bd6 {[%emt 0:01:06]} Bb6 {[%emt 0:04:11]} 26. e5 {[%emt 0:07:04]} Ng4 {[%emt 0:01:11]} 27. Bxg4 {[%emt 0:00:13]} Bxg4 {[%emt 0:00:34]} 28. Ra1 {[%emt 0:02:52]} Be6 {[%emt 0:04:30]} 29. Kf1 {[%emt 0:01:34]} Bc4+ {[%emt 0:01:58]} 30. Ke1 {[%emt 0:00:12]} Bd5 {[%emt 0:00:47]} 31. g3 {[%emt 0:03:27]} Kg7 {[%emt 0:03:11]} 32. Nd3 {[%emt 0:00:46]} h4 {[%emt 0:01:10]} 33. gxh4 {[%emt 0:03:18]} Bd8 {[%emt 0:00:17]} 34. Nb4 {[%emt 0:01:27]} Bxh4+ {[%emt 0:02:26]} 35. Kd2 {[%emt 0:00:17]} Bg5+ {[%emt 0:00:16]} 36. Kd3 {[%emt 0:01:05]} Bc4+ {[%emt 0:02:45]} 37. Kd4 {[%emt 0:00:15]} Rh8 {[%emt 0:00:48]} 38. Kc5 {[%emt 0:04:11]} Rxh2 {[%emt 0:03:01]} 39. e6 {[%emt 0:00:40]} Rxb2 {[%emt 0:00:17]} 40. exf7 {[%emt 0:00:37]} Kxf7 {[%emt 0:01:19]} 41. Nxa6 {[%emt 0:31:52]} Bd5 {[%emt 0:31:29]} 42. Rf1+ {[%emt 0:01:17]} Kg8 {[%emt 0:00:33]} 43. Kb6 {[%emt 0:00:00]} Rb3 {[%emt 0:00:00]} 44. Nc7 {[%emt 0:00:00]} Be3+ {[%emt 0:00:00]} 45. Ka5 {[%emt 0:00:00]} Bf7 {[%emt 0:00:00]} 46. Bb4 {[%emt 0:00:00]} c5 {[%emt 0:00:00]} 47. Nxb5 {[%emt 0:00:00]} cxb4 {[%emt 0:00:00]} 48. cxb4 {[%emt 0:00:00]} Bg5 {[%emt 0:00:00]} 49. Nd6 {[%emt 0:00:00]} Rxa3+ {[%emt 0:00:00]} 50. Kb5 {[%emt 0:00:00]} Be6 {[%emt 0:00:00]} 51. Rg1 {[%emt 0:00:00]} Bd7+ {[%emt 0:00:00]} 52. Kc4 {[%emt 0:00:00]} Be7 {[%emt 0:00:00]} 53. b5 {[%emt 0:03:35]} Kg7 {[%emt 0:00:00]} 54. Rd1 {[%emt 0:01:31]} Be6+ {[%emt 0:00:00]} 55. Kc5 {[%emt 0:00:51]} Rc3+ {[%emt 0:00:00]} 56. Kb6 {[%emt 0:00:11]} Bg4 {[%emt 0:00:00]} 57. Rd4 {[%emt 0:00:13]} Bf3 {[%emt 0:00:00]} 58. Ne4 {[%emt 0:01:18]} Re3 {[%emt 0:00:00]} 59. Nd2 {[%emt 0:00:27]} Re6+ {[%emt 0:00:00]} 60. Kc7 {[%emt 0:00:10]} Be2 {[%emt 0:00:39]} 61. b6 {[%emt 0:00:24]} Bf6 {[%emt 0:01:37]} 62. Rd7+ {[%emt 0:00:52]} Kh6 {[%emt 0:00:12]} 63. b7 {[%emt 0:01:17]} Be5+ {[%emt 0:00:09]} 64. Kd8 {[%emt 0:00:47]} Bb5 {[%emt 0:02:04]} 65. Rd5 {[%emt 0:00:24]} Re8# {[%emt 0:00:13]} 0-1

[Event "Niedersachsen-ch 2020"]
[Site "Verden-Aller"]
[Date "2020.01.02"]
[Round "2.11"]
[White "Lehmkuhl, Stefan"]
[Black "Hengst, Ruediger"]
[Result "1-0"]
[ECO "A45"]
[WhiteElo "1855"]
[BlackElo "1668"]
[Annotator "NA"]
[PlyCount "59"]
[EventDate "2020.01.02"]
[EventType "swiss"]
[EventCountry "GER"]
[SourceTitle "playchess.com"]
[Source "ChessBase"]
[SourceQuality "1"]
[TimeControl "40/5400+30:1800+30"]

1. d4 {[%emt 0:00:00]} Nf6 {[%emt 0:00:00]} 2. Bg5 {[%emt 0:00:00]} Ne4 {[%emt 0:01:23]} 3. Bh4 {[%emt 0:00:00]} d5 {[%emt 0:01:56]} 4. Nd2 {[%emt 0:00:08]} Nxd2 {[%emt 0:02:00]} 5. Qxd2 {[%emt 0:00:11]} g6 {[%emt 0:02:21]} 6. e3 {[%emt 0:00:13]} Bg7 {[%emt 0:00:39]} 7. Be2 {[%emt 0:00:39]} O-O {[%emt 0:00:53]} 8. Nf3 {[%emt 0:00:12]} Nd7 {[%emt 0:06:51]} 9. O-O {[%emt 0:04:01]} Nf6 {[%emt 0:00:54]} 10. Rac1 {[%emt 0:01:14]} Ne4 {[%emt 0:03:08]} 11. Qb4 {[%emt 0:01:35]} f6 {[%emt 0:02:17]} 12. c4 {[%emt 0:00:53]} c6 {[%emt 0:04:10]} 13. Rfd1 {[%emt 0:07:38]} a5 {[%emt 0:03:23]} 14. Qe1 {[%emt 0:01:01]} Be6 {[%emt 0:02:23]} 15. Nd2 {[%emt 0:00:55]} Nd6 {[%emt 0:01:26]} 16. b3 {[%emt 0:02:19]} Qd7 {[%emt 0:02:07]} 17. cxd5 {[%emt 0:00:36]} cxd5 {[%emt 0:00:47]} 18. f3 {[%emt 0:02:29]} Bh6 {[%emt 0:03:29]} 19. Bf2 {[%emt 0:00:15]} f5 {[%emt 0:04:53]} 20. f4 {[%emt 0:05:51]} b5 {[%emt 0:01:56]} 21. Nf3 {[%emt 0:00:35]} Bg7 {[%emt 0:04:12]} 22. Rc5 {[%emt 0:01:43]} Rfc8 {[%emt 0:03:41]} 23. Rdc1 {[%emt 0:00:09]} b4 {[%emt 0:01:54]} 24. Ng5 {[%emt 0:04:29]} Nb7 {[%emt 0:05:38]} 25. Bb5 {[%emt 0:04:19]} Qd6 {[%emt 0:03:17]} 26. Rc6 {[%emt 0:01:00]} Rxc6 {[%emt 0:00:36]} 27. Rxc6 {[%emt 0:00:07]} Qd7 {[%emt 0:01:20]} 28. Nxe6 {[%emt 0:00:44]} Nd6 {[%emt 0:00:42]} 29. Nc5 {[%emt 0:04:04]} Qe8 {[%emt 0:03:29]} 30. Ba4 {[%emt 0:00:28]} 1-0

[Event "Niedersachsen-ch 2020"]
[Site "Verden-Aller"]
[Date "2020.01.02"]
[Round "2.12"]
[White "Brunner, Alexander"]
[Black "Gruening, Thomas"]
[Result "1-0"]
[ECO "A80"]
[WhiteElo "1991"]
[BlackElo "1855"]
[Annotator "NA"]
[PlyCount "59"]
[EventDate "2020.01.02"]
[EventType "swiss"]
[EventCountry "GER"]
[SourceTitle "playchess.com"]
[Source "ChessBase"]
[SourceQuality "1"]
[TimeControl "40/5400+30:1800+30"]

1. d4 {[%emt 0:00:00]} f5 {[%emt 0:00:00]} 2. Nc3 {[%emt 0:00:00]} Nf6 {[%emt 0:00:00]} 3. Bf4 {[%emt 0:00:00]} e6 {[%emt 0:00:28]} 4. Nf3 {[%emt 0:01:03]} b6 {[%emt 0:00:44]} 5. e3 {[%emt 0:01:17]} Bb7 {[%emt 0:00:23]} 6. Bd3 {[%emt 0:00:55]} Nc6 {[%emt 0:01:41]} 7. e4 {[%emt 0:02:07]} fxe4 {[%emt 0:01:13]} 8. Nxe4 {[%emt 0:00:29]} Be7 {[%emt 0:01:04]} 9. c3 {[%emt 0:02:51]} O-O {[%emt 0:01:38]} 10. Qd2 {[%emt 0:02:28]} a5 {[%emt 0:04:46]} 11. h4 {[%emt 0:04:19]} Kh8 {[%emt 0:11:05]} 12. Bg5 {[%emt 0:02:03]} Nxd4 {[%emt 0:05:53]} 13. Nxd4 {[%emt 0:03:12]} Nxe4 {[%emt 0:00:29]} 14. Bxe4 {[%emt 0:01:12]} Bxe4 {[%emt 0:00:29]} 15. f3 {[%emt 0:00:26]} Bb7 {[%emt 0:01:59]} 16. O-O-O {[%emt 0:02:50]} a4 {[%emt 0:03:27]} 17. f4 {[%emt 0:04:22]} a3 {[%emt 0:03:07]} 18. b3 {[%emt 0:00:17]} c5 {[%emt 0:06:51]} 19. Nf3 {[%emt 0:02:09]} d5 {[%emt 0:02:47]} 20. Rhe1 {[%emt 0:01:52]} h6 {[%emt 0:06:01]} 21. Rxe6 {[%emt 0:03:39]} hxg5 {[%emt 0:17:57]} 22. Ne5 {[%emt 0:00:24]} Bd6 {[%emt 0:04:42]} 23. Ng6+ {[%emt 0:04:35]} Kg8 {[%emt 0:00:13]} 24. hxg5 {[%emt 0:04:29]} Qd7 {[%emt 0:04:32]} 25. Qe2 {[%emt 0:01:45]} Bxf4+ {[%emt 0:03:58]} 26. Kb1 {[%emt 0:00:37]} Bxg5 {[%emt 0:00:42]} 27. Rh1 {[%emt 0:03:22]} Bh6 {[%emt 0:07:46]} 28. Ne7+ {[%emt 0:00:14]} Kf7 {[%emt 0:06:40]} 29. Rf1+ {[%emt 0:00:55]} Ke8 {[%emt 0:00:14]} 30. Nc6+ {[%emt 0:00:45]} 1-0